Cogmind - Beta 9.6 @@@ ROGUE MODE // 2020.05.05 @ 23:55:31 Player: ptdel Result: Destroyed by H-88 Terminator with KE Penetrator Performance ------------- Evolutions (8) 4000 Regions Visited (18) 3600 Robots Destroyed (51) 255 Value Destroyed (1793) 1793 Prototype IDs (11) 220 Alien Tech Used (0) 0 Bonus (757) 757 TOTAL SCORE: 10625 Bonus ------- High Alert Combat Kills 35 Follower Combat Kills 432 Aligned with FarCom 300 Friendly Fire -10 Cogmind --------- Core Integrity 0/1450 Matter 235/300 Energy 68/100 System Corruption 0% Temperature Cool (0) Movement Core (50) Location -2/Research Parts ------- > --- POWER (5) -------- (None) > --- PROPULSION (8) --- Improved Gyrokinetic Inverter Improved Gyrokinetic Inverter Improved Gyrokinetic Inverter > --- UTILITY (8) ------ Advanced Visual Processing Unit Improved Terrain Scan Processor 0b10 Alert Chip Improved Transmission Jammer > --- WEAPON (2) ------- (None) > --- INVENTORY (4) ---- VTOL Module Xenon Bombardment Thruster Peak State ------------ > --- POWER ------------ Micro Nuclear Core Light Quantum Reactor Light Quantum Reactor Light Quantum Reactor Light Quantum Reactor > --- PROPULSION ------- Improved Gyrokinetic Inverter Improved Gyrokinetic Inverter Improved Gyrokinetic Inverter Improved Gyrokinetic Inverter Improved Gyrokinetic Inverter Improved Gyrokinetic Inverter Nuclear Pulse Array > --- UTILITY ---------- Advanced Visual Processing Unit Long-range Terrain Scanner Improved Terrain Scan Processor Experimental Terrain Scan Processor 0b10 Alert Chip Advanced ECM Suite Cloaking Device > --- WEAPON ----------- Scythe Ionic Axe > --- INVENTORY -------- VTOL Module Xenon Bombardment Thruster Improved Transmission Jammer [Rating: 137] Favorites ----------- Power Antimatter Reactor Engine Ion Engine Power Core Light Nuclear Core Reactor Antimatter Reactor Propulsion Medium Treads Treads Medium Treads Wheel Compact Wheel Hover Unit Improved Gyrokinetic Inverter Flight Unit Xenon Bombardment Thruster Utility High-capacity Storage Unit Device Advanced Terrain Scanner Storage High-capacity Storage Unit Processor Improved Terrain Scan Processor Protection Improved Utility Shielding Weapon Plasma Cannon Energy Gun Precision Shock Rifle Energy Cannon Plasma Cannon Ballistic Gun Light Assault Rifle Ballistic Cannon Light Cannon Launcher Heavy Rocket Launcher Impact Weapon Great Maul Slashing Weapon Scythe Build | -11 -10 -10 -10 -9 -8 -7 -7 -7 -6 -6 -5 -5 -5 -5 -5 -4 -3 -2 ------- Run | Scr Mat Min Exi Min Mat Fac Was Fac Fac Ext Fac Was Fac Upp Upp Fac Res Res Slots Evolved 16 | . . . . . 4 2 . . 2 . 2 . . . . 2 2 2 Power 4 | . . . . . 1 . . . . . 1 . . . . 1 . 1 Propulsion 6 | . . . . . 1 1 . . 1 . 1 . . . . . 1 1 Utility 6 | . . . . . 2 1 . . 1 . . . . . . 1 1 . Weapon . | . . . . . . . . . . . . . . . . . . . Parts Attached 110 | 5 25 4 . . 18 7 2 7 2 18 2 . 1 1 . 3 1 14 Power 22 | . 3 . . . 4 3 . 2 . 3 1 . . . . 1 1 4 Engine 9 | . 3 . . . 3 3 . . . . . . . . . . . . Core 5 | . . . . . 1 . . . . 3 1 . . . . . . . Reactor 8 | . . . . . . . . 2 . . . . . . . 1 1 4 Propulsion 38 | 2 8 2 . . 5 2 2 4 . 5 1 . . . . 1 . 6 Treads 20 | 2 5 2 . . 5 . 2 4 . . . . . . . . . . Leg . | . . . . . . . . . . . . . . . . . . . Wheel 3 | . 3 . . . . . . . . . . . . . . . . . Hover 8 | . . . . . . 2 . . . . . . . . . . . 6 Flight 7 | . . . . . . . . . . 5 1 . . . . 1 . . Utility 26 | 1 4 2 . . 3 2 . . 1 8 . . 1 . . 1 . 3 Device 12 | . 1 . . . 2 . . . 1 4 . . 1 . . 1 . 2 Storage 5 | 1 2 2 . . . . . . . . . . . . . . . . Processor 5 | . 1 . . . . . . . . 3 . . . . . . . 1 Hackware . | . . . . . . . . . . . . . . . . . . . Protection 4 | . . . . . 1 2 . . . 1 . . . . . . . . Artifact . | . . . . . . . . . . . . . . . . . . . Weapon 24 | 2 10 . . . 6 . . 1 1 2 . . . 1 . . . 1 Energy Gun 5 | 1 3 . . . . . . 1 . . . . . . . . . . Energy Cannon 2 | . . . . . 2 . . . . . . . . . . . . . Ballistic Gun 6 | 1 4 . . . . . . . . 1 . . . . . . . . Ballistic Cannon 4 | . 3 . . . 1 . . . . . . . . . . . . . Launcher 3 | . . . . . 3 . . . . . . . . . . . . . Special Weapon . | . . . . . . . . . . . . . . . . . . . Impact Weapon 1 | . . . . . . . . . 1 . . . . . . . . . Slashing Weapon 3 | . . . . . . . . . . 1 . . . 1 . . . 1 Piercing Weapon . | . . . . . . . . . . . . . . . . . . . Special Melee Weapon . | . . . . . . . . . . . . . . . . . . . Unidentified Prototypes 6 | . . . . . . 1 . 1 . . . . . 1 . . 1 2 Parts Lost 36 | . 2 . . . 8 . . . . 6 . . . . . 1 4 15 Power 13 | . 1 . . . 3 . . . . 2 . . . . . . 2 5 Propulsion 12 | . . . . . 2 . . . . 4 . . . . . 1 1 4 Utility 6 | . . . . . 1 . . . . . . . . . . . 1 4 Weapon 5 | . 1 . . . 2 . . . . . . . . . . . . 2 Highest Loss Streak 15 | . 1 . . . 3 . . . . 4 . . . . . 1 4 15 Average Slot Usage (%) 89 | . 96 100 100 100 85 93 91 95 93 92 82 82 82 82 82 76 70 64 Engine 7 | . 13 14 14 14 9 15 15 7 . . . . . . . . . . Core 2 | . . . . . . . . . . 2 17 17 17 17 17 15 13 3 Reactor 3 | . . . . . . . . 7 13 10 . . . . . . . 5 Treads 19 | . 23 28 28 28 25 15 15 25 26 21 . . . . . . . . Hover 1 | . . . . . . 8 7 . . . . . . . . . . 17 Flight 4 | . . . . . . . . . . 5 23 23 23 23 23 19 19 5 Device 8 | . . . . . 7 7 7 7 13 14 17 17 17 17 17 21 19 10 Storage 13 | . 16 28 28 28 18 15 15 15 13 11 . . . . . . . . Processor 4 | . 10 . . . . . . . . 2 17 17 17 17 17 15 14 15 Protection 6 | . . . . . 6 14 15 15 13 10 . . . . . . . . Energy Gun 2 | . 10 . . . . . . 1 6 5 . . . . . . . . Energy Cannon 4 | . . . . . 6 15 15 13 3 . . . . . . . . . Ballistic Gun 1 | . 8 . . . . . . . . 1 . . . . . . . . Ballistic Cannon 5 | . 7 28 28 28 8 . . . . . . . . . . . . . Naked Turns . | . . . . . . . . . . . . . . . . . . . Heaviest Build 121 | 7 43 75 75 75 91 102 102 121 119 116 23 23 23 23 23 26 26 78 Greatest Support 140 | 40 40 40 40 40 84 50 140 140 112 112 26 26 26 26 26 39 39 102 Greatest Overweight (x) 4 | . 4 1 1 1 1 2 2 4 1 1 . . . . . 1 . . Average Overweight (x) . | . . 1 1 1 . 1 . . 1 . . . . . . . . . Largest Inventory Capacity 20 | 6 16 20 20 20 20 20 20 20 20 20 4 4 4 4 4 4 4 4 Average Capacity 14 | 5 7 18 20 20 20 20 20 20 20 17 4 4 4 4 4 4 4 4 Most Carried 20 | 5 7 11 11 11 20 20 20 20 20 20 3 3 4 4 4 4 4 4 Average Carried 12 | 3 5 9 10 11 13 18 18 19 19 17 2 3 3 3 4 3 3 3 Final Capacity 20 | 6 16 20 20 20 20 20 20 20 20 4 4 4 4 4 4 4 4 4 Final Carried 20 | 5 7 10 11 11 20 18 20 19 20 4 3 3 4 4 4 3 4 2 Class Distribution -------------------- 38% | Hauler-Skirmisher 16% | Mutant 12% | Hauler-Mutant 10% | Hauler-Assassin 8% | Infiltrator-Ninja 8% | Scout Dominant Class ---------------- Mutant | -10/Materials Hauler-Mutant | -10/Mines Hauler-Mutant | -10/Exiles Hauler-Mutant | -9/Mines Hauler-Skirmisher | -8/Materials Hauler-Skirmisher | -7/Factory Hauler-Skirmisher | -7/Waste Hauler-Skirmisher | -7/Factory Hauler-Skirmisher | -6/Factory Hauler-Assassin | -6/Extension Scout | -5/Factory Scout | -5/Waste Scout | -5/Factory Ninja | -5/Upper Caves Ninja | -5/Upper Caves Infiltrator-Ninja | -4/Factory Infiltrator-Ninja | -3/Research Infiltrator-Ninja | -2/Research Resources | -11 -10 -10 -10 -9 -8 -7 -7 -7 -6 -6 -5 -5 -5 -5 -5 -4 -3 -2 ----------- Run | Scr Mat Min Exi Min Mat Fac Was Fac Fac Ext Fac Was Fac Upp Upp Fac Res Res Matter Collected 1692 | 239 239 46 . . 654 62 45 97 20 225 . 20 . . 20 . 25 . Remotely . | . . . . . . . . . . . . . . . . . . . Salvage Created 1684 | . 351 . . . 671 91 . 9 41 347 97 . . . . . . 77 Parts 97 | . 27 . . . 35 5 . 3 1 19 2 . . . . . . 5 Haulers Intercepted 1 | . . . . . . . . . . . 1 . . . . . . . Recyclers Shooed 1 | . . . . . 1 . . . . . . . . . . . . . Parts Field Recycled . | . . . . . . . . . . . . . . . . . . . Retrieved Matter . | . . . . . . . . . . . . . . . . . . . Parts Self-Destructed . | . . . . . . . . . . . . . . . . . . . Prevented . | . . . . . . . . . . . . . . . . . . . Kills | -11 -10 -10 -10 -9 -8 -7 -7 -7 -6 -6 -5 -5 -5 -5 -5 -4 -3 -2 ------- Run | Scr Mat Min Exi Min Mat Fac Was Fac Fac Ext Fac Was Fac Upp Upp Fac Res Res Combat Hostiles Destroyed 39 | . 9 . . . 20 2 . . 1 6 . . . . . . . 1 Melee 2 | . . . . . . . . . 1 . . . . . . . . 1 Guns 14 | . 9 . . . . . . . . 5 . . . . . . . . Cannons 10 | . . . . . 8 2 . . . . . . . . . . . . AOE 12 | . . . . . 12 . . . . . . . . . . . . . Classes Destroyed 11 | . 2 . . . 7 1 . . . . 1 . . . . . . . Worker 2 | . . . . . 2 . . . . . . . . . . . . . Builder 2 | . . . . . 1 . . 1 . . . . . . . . . . Hauler 1 | . . . . . . . . . . . 1 . . . . . . . Recycler 1 | . . . . . 1 . . . . . . . . . . . . . Watcher 6 | . 3 . . . 3 . . . . . . . . . . . . . Swarmer 8 | . . . . . 6 . . . . 2 . . . . . . . . Grunt 17 | . 9 . . . 7 . . . . 1 . . . . . . . . Brawler 1 | . . . . . 1 . . . . . . . . . . . . . Sentry 7 | . . . . . 4 . . . . 3 . . . . . . . . Hunter 3 | . . . . . 2 . . . . . . . . . . . . 1 Programmer 3 | . . . . . . 2 . . 1 . . . . . . . . . Best Kill Streak 6 | . 2 . . . 6 1 . 1 1 2 1 . . . . . . 1 Combat Bots Only 5 | . 2 . . . 5 1 . . 1 2 . . . . . . . 1 Max Kills in Single Turn 2 | . 1 . . . 2 1 . 1 1 2 1 . . . . . . 1 Gunslinging . | . . . . . . . . . . . . . . . . . . . Exploded 2 | . . . . . 2 . . . . . . . . . . . . . Melee 1 | . . . . . . . . . 1 . . . . . . . . 1 Uniques/NPCs Destroyed . | . . . . . . . . . . . . . . . . . . . Combat | -11 -10 -10 -10 -9 -8 -7 -7 -7 -6 -6 -5 -5 -5 -5 -5 -4 -3 -2 -------- Run | Scr Mat Min Exi Min Mat Fac Was Fac Fac Ext Fac Was Fac Upp Upp Fac Res Res Damage Taken 6546 | . 387 . . . 1352 223 . 285 45 1271 . . 53 . . 36 455 2439 Core 1777 | . 13 . . . 104 . . 11 . 154 . . . . . . 45 1450 Absorbed by Shields 78 | . . . . . . . . . . 78 . . . . . . . . Core Remaining (%) 93 | 100 . . . 94 81 . . 98 . 81 . . . . 100 100 96 . Volleys Fired 112 | . 45 . . . 43 5 . . . 19 . . . . . . . . Largest 2 | . 2 . . . 2 2 . . . 2 . . . . . . . . Hottest 160 | . 130 . . . 160 160 . . . 88 . . . . . . . . Shots Fired 194 | . 80 . . . 73 10 . 1 . 30 . . . . . . . . Gun 110 | . 80 . . . . . . . . 30 . . . . . . . . Cannon 57 | . . . . . 46 10 . 1 . . . . . . . . . . Launcher 27 | . . . . . 27 . . . . . . . . . . . . . Special . | . . . . . . . . . . . . . . . . . . . Kinetic 85 | . 44 . . . 30 . . . . 11 . . . . . . . . Thermal 63 | . 36 . . . 16 10 . 1 . . . . . . . . . . Explosive 22 | . . . . . 22 . . . . . . . . . . . . . Electromagnetic 24 | . . . . . 5 . . . . 19 . . . . . . . . Robot Hit Streak 19 | . 14 . . . 10 4 . . . 19 . . . . . . . . Robot Miss Streak 6 | . 6 . . . 4 4 . . . 1 . . . . . . . . Penetration Max 2 | . . . . . . . . . . 2 . . . . . . . . Secondary Targets . | . . . . . . . . . . . . . . . . . . . Shots Hit Robots 148 | . 58 . . . 41 6 . . 2 28 1 . . . . . . 12 Core Hits 116 | . 46 . . . 49 2 . . 1 14 1 . . . . . . 3 Critical Hits 7 | . . . . . 1 . . . . 6 . . . . . . . . Critical Kills 4 | . . . . . . . . . . 4 . . . . . . . . Critical Parts Destroyed 2 | . . . . . . . . . . 2 . . . . . . . . Melee Attacks 45 | . . . . . . . . . 3 2 2 . . . . 1 20 17 Impact 5 | . . . . . . . . . 3 2 . . . . . . . . Slashing 40 | . . . . . . . . . . . 2 . . . . 1 20 17 Piercing . | . . . . . . . . . . . . . . . . . . . Sneak Attacks 1 | . . . . . . . . . . . 1 . . . . . . . Combat Hostiles . | . . . . . . . . . . . . . . . . . . . Follow-up Attacks 1 | . . . . . . . . . . . . . . . . . . 1 Damage Inflicted 4900 | . 527 . . . 3027 220 . 9 78 428 96 . . . . . . 515 Guns 926 | . 527 . . . . . . . . 399 . . . . . . . . Cannons 805 | . . . . . 585 220 . . . . . . . . . . . . Explosions 2421 | . . . . . 2421 . . . . . . . . . . . . . Melee 718 | . . . . . . . . . 78 29 96 . . . . . . 515 Ramming 30 | . . . . . 21 . . 9 . . . . . . . . . . Kinetic 575 | . 182 . . . 303 . . . . 90 . . . . . . . . Thermal 847 | . 345 . . . 282 220 . . . . . . . . . . . . Explosive 2185 | . . . . . 2185 . . . . . . . . . . . . . Electromagnetic 545 | . . . . . 236 . . . . 309 . . . . . . . . Impact 107 | . . . . . . . . . 78 29 . . . . . . . . Slashing 611 | . . . . . . . . . . . 96 . . . . . . 515 Piercing . | . . . . . . . . . . . . . . . . . . . Highest Corruption 5 | . . . . . . 4 4 5 1 1 . . . . . 1 4 . Average Corruption 2 | . . . . . . 3 4 4 1 1 . . . . . 1 1 . Corruption Purged . | . . . . . . . . . . . . . . . . . . . Effects 39 | . . . . . . 3 11 17 . 5 . . . . . 1 2 . Message Errors 13 | . . . . . . 2 3 5 . 2 . . . . . . 1 . Matter Fused 7 | . . . . . . . 4 3 . . . . . . . . . . Heat Flow Errors 4 | . . . . . . . . 4 . . . . . . . . . . Energy Discharges 5 | . . . . . . . 2 1 . 2 . . . . . . . . Data Loss (minor) 8 | . . . . . . 1 2 3 . 1 . . . . . 1 . . Misfires 1 | . . . . . . . . 1 . . . . . . . . . . Targeting Errors 1 | . . . . . . . . . . . . . . . . . 1 . Overload Shots . | . . . . . . . . . . . . . . . . . . . Overflow Damage 247 | . . . . . 241 . . . . . . . . . . . . 6 Projectiles 24 | . . . . . 24 . . . . . . . . . . . . . Explosions 217 | . . . . . 217 . . . . . . . . . . . . . Melee 6 | . . . . . . . . . . . . . . . . . . 6 Knockbacks 6 | . . . . . 5 . . . . 1 . . . . . . . . Impact 2 | . . . . . 1 . . . . 1 . . . . . . . . Kinetic 4 | . . . . . 4 . . . . . . . . . . . . . Secondary . | . . . . . . . . . . . . . . . . . . . Self-Inflicted Damage 225 | . . . . . 225 . . . . . . . . . . . . . Shots 7 | . . . . . 7 . . . . . . . . . . . . . Rammed 4 | . 1 . . . 3 . . . . . . . . . . . . . Targets Rammed 5 | . 1 . . . 3 . . 1 . . . . . . . . . . Kicked . | . . . . . . . . . . . . . . . . . . . Crushed 1 | . . . . . . . . 1 . . . . . . . . . . Highest Temperature 414 | . 366 . . . 213 324 . 287 . 162 . . . . . . . 414 Average Temperature 127 | . 99 . . . 53 141 . 90 . 57 . . . . . . . 220 Received Heat Transfer 641 | . 207 . . . 225 . . . . 200 . . . . . . 9 . Effects 13 | . 2 . . . . . . . . . . . . . . . . 11 Shutdowns 9 | . . . . . . . . . . . . . . . . . . 9 Energy Bleed 1 | . . . . . . . . . . . . . . . . . . 1 Short Circuit 1 | . 1 . . . . . . . . . . . . . . . . . Damage (minor) 2 | . 1 . . . . . . . . . . . . . . . . 1 Siege Activations . | . . . . . . . . . . . . . . . . . . . Robots Corrupted 1 | . . . . . . . . . . 1 . . . . . . . . Combat Hostiles 1 | . . . . . . . . . . 1 . . . . . . . . Parts Fried 2 | . . . . . . . . . . 2 . . . . . . . . Impact Corruptions . | . . . . . . . . . . . . . . . . . . . Robots Melted . | . . . . . . . . . . . . . . . . . . . Combat Hostiles . | . . . . . . . . . . . . . . . . . . . Parts Melted 4 | . 1 . . . . 3 . . . . . . . . . . . . Heat Transferred 1398 | . 498 . . . 550 350 . . . . . . . . . . . . Parts Sabotaged . | . . . . . . . . . . . . . . . . . . . Parts Stolen . | . . . . . . . . . . . . . . . . . . . Parts Stripped . | . . . . . . . . . . . . . . . . . . . Power Chain Reactions . | . . . . . . . . . . . . . . . . . . . Missiles Intercepted . | . . . . . . . . . . . . . . . . . . . Alert | -11 -10 -10 -10 -9 -8 -7 -7 -7 -6 -6 -5 -5 -5 -5 -5 -4 -3 -2 ------- Run | Scr Mat Min Exi Min Mat Fac Was Fac Fac Ext Fac Was Fac Upp Upp Fac Res Res Peak Influence 483 | . 152 . . . 483 249 10 139 30 408 107 . . . . 50 157 34 Average Influence 75 | . 41 . . . 211 124 10 13 10 108 80 . . . . 14 88 13 Maximum Alert Level 2 | . . . . . 2 1 . . . 2 . . . . . . . . Low Security (%) 85 | 100 100 100 . 100 48 54 100 100 100 83 100 100 100 . . 100 100 100 Level 1 8 | . . . . . 23 45 . . . 8 . . . . . . . . Level 2 5 | . . . . . 28 . . . . 7 . . . . . . . . Level 3 . | . . . . . . . . . . . . . . . . . . . Level 4 . | . . . . . . . . . . . . . . . . . . . Level 5 . | . . . . . . . . . . . . . . . . . . . High Security . | . . . . . . . . . . . . . . . . . . . Max Security . | . . . . . . . . . . . . . . . . . . . Squads Dispatched 16 | . 2 . . . 1 2 . 1 1 4 . . . . . 2 1 2 Investigation 6 | . 1 . . . . . . . . 4 . . . . . . . 1 Extermination 7 | . . . . . . 2 . 1 1 . . . . . . 1 1 1 Reinforcement 3 | . 1 . . . 1 . . . . . . . . . . 1 . . Assault . | . . . . . . . . . . . . . . . . . . . Garrison . | . . . . . . . . . . . . . . . . . . . Intercept . | . . . . . . . . . . . . . . . . . . . Construction Impeded . | . . . . . . . . . . . . . . . . . . . Haulers Reinforced . | . . . . . . . . . . . . . . . . . . . Stealth | -11 -10 -10 -10 -9 -8 -7 -7 -7 -6 -6 -5 -5 -5 -5 -5 -4 -3 -2 --------- Run | Scr Mat Min Exi Min Mat Fac Was Fac Fac Ext Fac Was Fac Upp Upp Fac Res Res Distress Signals 6 | . 1 . . . 1 . . . . 4 . . . . . . . . Communications Jammed . | . . . . . . . . . . . . . . . . . . . Distress Signals . | . . . . . . . . . . . . . . . . . . . Times Spotted 104 | . 17 . . . 36 2 . 5 3 28 . 1 3 . . 1 4 4 Peak Tracking Total 9 | . 2 . . . 9 1 . 2 1 7 . 1 3 . . 2 4 3 Tactical Retreats 9 | . 2 . . . 4 . . . . 3 . . . . . . . . Traps | -11 -10 -10 -10 -9 -8 -7 -7 -7 -6 -6 -5 -5 -5 -5 -5 -4 -3 -2 ------- Run | Scr Mat Min Exi Min Mat Fac Was Fac Fac Ext Fac Was Fac Upp Upp Fac Res Res Traps Triggered 17 | . 6 . . . . 4 . 1 . 2 1 . 1 . . 1 . 1 Indirectly . | . . . . . . . . . . . . . . . . . . . Trap Hack Attempts . | . . . . . . . . . . . . . . . . . . . Triggered . | . . . . . . . . . . . . . . . . . . . Disarmed 7 | . . . . . 3 . . . . 4 . . . . . . . . Reprogrammed 5 | . . . . . . . . . . 5 . . . . . . . . Reused . | . . . . . . . . . . . . . . . . . . . Traps Extracted . | . . . . . . . . . . . . . . . . . . . Installed . | . . . . . . . . . . . . . . . . . . . Triggered . | . . . . . . . . . . . . . . . . . . . Machines | -11 -10 -10 -10 -9 -8 -7 -7 -7 -6 -6 -5 -5 -5 -5 -5 -4 -3 -2 ---------- Run | Scr Mat Min Exi Min Mat Fac Was Fac Fac Ext Fac Was Fac Upp Upp Fac Res Res Machines Disabled 5 | . . . . . 4 . . . . 1 . . . . . . . . Max in Single Turn 1 | . . . . . 1 . . . . . . . . . . . . . Machines Sabotaged . | . . . . . . . . . . . . . . . . . . . Garrisons Compromised . | . . . . . . . . . . . . . . . . . . . Overloaded Fab Kills . | . . . . . . . . . . . . . . . . . . . Fab Network Shutdowns . | . . . . . . . . . . . . . . . . . . . Hacking | -11 -10 -10 -10 -9 -8 -7 -7 -7 -6 -6 -5 -5 -5 -5 -5 -4 -3 -2 --------- Run | Scr Mat Min Exi Min Mat Fac Was Fac Fac Ext Fac Was Fac Upp Upp Fac Res Res Machines Accessed 52 | . 6 . . . 7 2 . 3 6 9 5 . 1 . . 6 4 3 Terminals 39 | . 5 . . . 6 1 . 3 2 9 3 . 1 . . 5 3 1 Fabricators 3 | . . . . . . . . . 1 . . . . . . . . 2 Repair Stations 1 | . . . . . . 1 . . . . . . . . . . . . Recycling Units 2 | . 1 . . . . . . . 1 . . . . . . . . . Scanalyzers 3 | . . . . . 1 . . . 1 . . . . . . 1 . . Garrison Access 4 | . . . . . . . . . 1 . 2 . . . . . 1 . Total Hacks 125 | . 13 . . . 28 6 . 5 11 26 10 . 1 . . 11 7 7 Successful 58 | . 10 . . . 20 1 . . 5 9 3 . . . . 3 3 4 Failed 67 | . 3 . . . 8 5 . 5 6 17 7 . 1 . . 8 4 3 Catastrophic 16 | . 1 . . . . 2 . 3 . 2 5 . 1 . . 1 . 1 Database Lockouts . | . . . . . . . . . . . . . . . . . . . Manual 23 | . 1 . 1 . 3 3 . 3 . . 2 . 1 . . 8 . 1 Terminals 92 | . 12 . . . 18 3 . 5 3 26 7 . 1 . . 9 6 2 Fabricators 7 | . . . . . . . . . 2 . . . . . . . . 5 Repair Stations 3 | . . . . . . 3 . . . . . . . . . . . . Recycling Units 2 | . 1 . . . . . . . 1 . . . . . . . . . Scanalyzers 14 | . . . . . 10 . . . 2 . . . . . . 2 . . Garrison Access 7 | . . . . . . . . . 3 . 3 . . . . . 1 . Terminal Hacks 39 | . 9 . . . 11 . . . 1 9 3 . . . . 2 3 1 Record 1 | . . . . . 1 . . . . . . . . . . . . . Part Schematic 1 | . . . . . . . . . . . . . . . . . 1 . Prototype ID Bank 4 | . 4 . . . . . . . . . . . . . . . . . Open Door 6 | . . . . . . . . . . 6 . . . . . . . . Level Access Points 2 | . . . . . 1 . . . . . . . . . . . 1 . Branch Access Points 2 | . 1 . . . . . . . . . 1 . . . . . . . Emergency Access Points 1 | . . . . . 1 . . . . . . . . . . . . . Unreport Threat 4 | . 2 . . . . . . . 1 . . . . . . 1 . . Locate Traps 2 | . . . . . 1 . . . . 1 . . . . . . . . Disarm Traps 3 | . . . . . 2 . . . . 1 . . . . . . . . Reprogram Traps 1 | . . . . . . . . . . 1 . . . . . . . . Patrol Status 1 | . . . . . . . . . . . 1 . . . . . . . Recall Investigation 2 | . . . . . 1 . . . . . . . . . . 1 . . Hauler Manifests 1 | . 1 . . . . . . . . . . . . . . . . . Registered Components 1 | . 1 . . . . . . . . . . . . . . . . . Zone Layout 7 | . . . . . 4 . . . . . 1 . . . . . 1 1 Fabricator Hacks 5 | . . . . . . . . . 2 . . . . . . . . 3 Load Schematic 3 | . . . . . . . . . 1 . . . . . . . . 2 Build 2 | . . . . . . . . . 1 . . . . . . . . 1 Repair Station Hacks 1 | . . . . . . 1 . . . . . . . . . . . . Scan Component 1 | . . . . . . 1 . . . . . . . . . . . . Recycling Unit Hacks 1 | . 1 . . . . . . . . . . . . . . . . . Report Inventory 1 | . 1 . . . . . . . . . . . . . . . . . Scanalyzer 12 | . . . . . 9 . . . 2 . . . . . . 1 . . Insert Component 7 | . . . . . 5 . . . 1 . . . . . . 1 . . Analyze 5 | . . . . . 4 . . . 1 . . . . . . . . . Garrison Access Hacks . | . . . . . . . . . . . . . . . . . . . Unauthorized Hacks . | . . . . . . . . . . . . . . . . . . . Terminals . | . . . . . . . . . . . . . . . . . . . Fabricators . | . . . . . . . . . . . . . . . . . . . Repair Stations . | . . . . . . . . . . . . . . . . . . . Recycling Units . | . . . . . . . . . . . . . . . . . . . Scanalyzers . | . . . . . . . . . . . . . . . . . . . Garrison Access . | . . . . . . . . . . . . . . . . . . . Data Cores Recovered . | . . . . . . . . . . . . . . . . . . . Used . | . . . . . . . . . . . . . . . . . . . Hacking Detections 48 | . 6 . . . 7 2 . 3 5 6 5 . 1 . . 6 4 3 Full Trace Events 6 | . 1 . . . . . . . . 4 . . . . . . . 1 Feedback Events . | . . . . . . . . . . . . . . . . . . . Feedback Blocked . | . . . . . . . . . . . . . . . . . . . Robot Schematics Acquired . | . . . . . . . . . . . . . . . . . . . Robots Built . | . . . . . . . . . . . . . . . . . . . Matter . | . . . . . . . . . . . . . . . . . . . Time . | . . . . . . . . . . . . . . . . . . . Total Robot Build Rating . | . . . . . . . . . . . . . . . . . . . Part Schematics Acquired 6 | . . . . . 4 . . . 1 . . . . . . . 1 . Parts Built 4 | . . . . . . . . . 2 . . . . . . . . 2 Matter 336 | . . . . . . . . . 168 . . . . . . . . 168 Time 126 | . . . . . . . . . 84 . . . . . . . . 42 Total Part Build Rating 16 | . . . . . . . . . 8 . . . . . . . . 8 Parts Repaired . | . . . . . . . . . . . . . . . . . . . Time . | . . . . . . . . . . . . . . . . . . . Parts Recycled . | . . . . . . . . . . . . . . . . . . . Recycled Matter . | . . . . . . . . . . . . . . . . . . . Retrieved Matter . | . . . . . . . . . . . . . . . . . . . Retrieved Components . | . . . . . . . . . . . . . . . . . . . Parts Scanalyzed 6 | . . . . . 4 . . . 1 . . . . . . 1 . . Part Schematics Acquired 5 | . . . . . 4 . . . 1 . . . . . . . . . Parts Damaged . | . . . . . . . . . . . . . . . . . . . Bothacking | -11 -10 -10 -10 -9 -8 -7 -7 -7 -6 -6 -5 -5 -5 -5 -5 -4 -3 -2 ------------ Run | Scr Mat Min Exi Min Mat Fac Was Fac Fac Ext Fac Was Fac Upp Upp Fac Res Res Used RIF Installer . | . . . . . . . . . . . . . . . . . . . Robots Hacked . | . . . . . . . . . . . . . . . . . . . Non-combat . | . . . . . . . . . . . . . . . . . . . Combat . | . . . . . . . . . . . . . . . . . . . Robot Hacks Applied . | . . . . . . . . . . . . . . . . . . . Relay Couplers Released . | . . . . . . . . . . . . . . . . . . . Robots Rewired . | . . . . . . . . . . . . . . . . . . . Allies Hacked 1 | . . . . . . . . 1 . . . . . . . . . . Hacks Repelled . | . . . . . . . . . . . . . . . . . . . Allies | -11 -10 -10 -10 -9 -8 -7 -7 -7 -6 -6 -5 -5 -5 -5 -5 -4 -3 -2 -------- Run | Scr Mat Min Exi Min Mat Fac Was Fac Fac Ext Fac Was Fac Upp Upp Fac Res Res Total Allies 28 | . . 2 . . . . 20 . . 6 . . . . . . . . Largest Group 20 | . . 2 2 . . . 20 10 . 5 . . . . . . . . Highest-Rated Group 555 | . . 45 45 . . . 555 269 . 257 . . . . . . . . Highest-Rated Ally 156 | . . 31 31 . . . 35 35 . 156 . . . . . . . . Total Orders . | . . . . . . . . . . . . . . . . . . . Ally Attacks 77 | . . . . . . . . 23 . 54 . . . . . . . . Total Damage 1973 | . . . . . . . . 446 . 1527 . . . . . . . . Kills 15 | . . . . . . . . 5 . 10 . . . . . . . . Allies Corrupted . | . . . . . . . . . . . . . . . . . . . Allies Melted . | . . . . . . . . . . . . . . . . . . . Intel | -11 -10 -10 -10 -9 -8 -7 -7 -7 -6 -6 -5 -5 -5 -5 -5 -4 -3 -2 ------- Run | Scr Mat Min Exi Min Mat Fac Was Fac Fac Ext Fac Was Fac Upp Upp Fac Res Res Robot Analysis Total . | . . . . . . . . . . . . . . . . . . . Derelict Logs Recovered 5 | . . 3 . . . . . . . . . . . 1 1 . . . Drone Launches . | . . . . . . . . . . . . . . . . . . . Drone Recoveries . | . . . . . . . . . . . . . . . . . . . Exploration | -11 -10 -10 -10 -9 -8 -7 -7 -7 -6 -6 -5 -5 -5 -5 -5 -4 -3 -2 ------------- Run | Scr Mat Min Exi Min Mat Fac Was Fac Fac Ext Fac Was Fac Upp Upp Fac Res Res Turns Passed 9946 | 75 1273 710 417 61 1519 880 330 698 1099 1012 512 58 26 152 68 306 402 348 Spaces Moved 7535 | 44 618 387 232 32 675 472 180 382 566 740 840 187 74 363 218 514 688 323 Core 9 | 8 1 . . . . . . . . . . . . . . . . . Treads 3934 | 36 549 387 232 32 675 472 180 382 566 423 . . . . . . . . Legs . | . . . . . . . . . . . . . . . . . . . Wheels 68 | . 68 . . . . . . . . . . . . . . . . . Hover 121 | . . . . . . . . . . . . . . . . . . 121 Flight 3403 | . . . . . . . . . . 317 840 187 74 363 218 514 688 202 Fastest Speed 28 | 50 100 180 180 180 160 172 160 160 180 28 31 31 31 31 31 31 31 34 Average Speed 107 | 140 157 180 180 180 167 176 173 174 180 115 31 31 31 31 31 43 31 41 Slowest Speed 250 | 160 250 180 180 180 180 192 192 240 180 180 31 31 31 31 31 114 34 66 Overloaded Moves . | . . . . . . . . . . . . . . . . . . . Propulsion Burnouts . | . . . . . . . . . . . . . . . . . . . Robots Hopped 1 | . . . . . . . . . . . . . . . . 1 . . Cave-ins Triggered . | . . . . . . . . . . . . . . . . . . . Exploration Rate (%) 36 | 5 73 78 60 13 58 9 84 11 11 51 22 87 3 56 28 14 14 11 Regions Visited 18 Branch Regions 6 Pre-discovered Areas 1 | . . 1 . . . . . . . . . . . . . . . . Known Exits Taken 4 | . 1 . . . 1 . . . . . . . 1 . . . 1 . Unknown Exits Taken 10 | 1 . 1 1 1 . . . 1 1 1 . . . 1 1 1 . . Scrap Searched 5 | . . 1 . . . . . . . . . . . 2 2 . . . Spaces Dug 14 | . . . . . . . . . . . 1 . . . . 1 12 . Terrain Destroyed 282 | . . . . . 268 . . . . . 1 . . . . 1 12 . Melee 14 | . . . . . . . . . . . 1 . . . . 1 12 . Projectile 3 | . . . . . 3 . . . . . . . . . . . . . AOE 265 | . . . . . 265 . . . . . . . . . . . . . Actions | -11 -10 -10 -10 -9 -8 -7 -7 -7 -6 -6 -5 -5 -5 -5 -5 -4 -3 -2 --------- Run | Scr Mat Min Exi Min Mat Fac Was Fac Fac Ext Fac Was Fac Upp Upp Fac Res Res Total 9126 | 58 850 400 232 36 992 511 201 416 643 866 1088 186 75 402 217 594 846 513 Wait 1086 | . 122 3 . 5 204 8 4 10 59 49 243 . . 36 . 65 135 143 Move 7517 | 43 617 386 231 31 674 472 179 381 565 739 840 186 73 362 217 511 687 323 Hop 1 | . . . . . . . . . . . . . . . . 1 . . Pick Up 143 | 10 29 5 1 . 35 10 8 9 8 5 1 . 1 1 . 7 2 11 Fast Attach . | . . . . . . . . . . . . . . . . . . . Attach 84 | 5 18 . . . 14 4 2 4 1 16 2 . . 1 . 3 1 13 Detach 1 | . . . . . . . . . . . . . . 1 . . . . Swap 26 | . 7 4 . . 4 3 . 3 1 2 . . 1 . . . . 1 Drop 86 | . 11 2 . . 15 9 8 8 6 17 . . . 1 . 6 1 2 Fire 112 | . 45 . . . 43 5 . . . 19 . . . . . . . . Melee 44 | . . . . . . . . . 3 2 2 . . . . 1 20 16 Ram . | . . . . . . . . . . . . . . . . . . . Kick . | . . . . . . . . . . . . . . . . . . . Crush 5 | . 1 . . . 3 . . 1 . . . . . . . . . . Escape Stasis 21 | . . . . . . . . . . 17 . . . . . . . 4 Rewire . | . . . . . . . . . . . . . . . . . . . Trap . | . . . . . . . . . . . . . . . . . . . Miscellaneous . | . . . . . . . . . . . . . . . . . . . Route ------- -11/Scrapyard -10/Materials (discovered 3 exits: [*Mat] / *Min x2) -10/Mines (discovered 2 exits: [*Mat] / *Exi) -10/Exiles -9/Mines -8/Materials (discovered 3 exits: *Fac x3) -7/Factory -7/Waste -7/Factory -6/Factory -6/Extension -5/Factory (discovered 2 exits: Upp x2) -5/Waste -5/Factory -5/Upper Caves -5/Upper Caves -4/Factory (discovered 2 exits: *Res / [Upp]) -3/Research (discovered 4 exits: *Res x3 / [*Qua]) -2/Research History --------- Turn | Location | Event 5 | -11/Scrapyard | Discovered new exit (range 15) 76 | -11/Scrapyard | Entered Materials 210 | -10/Materials | Discovered new exit (range 17) 300 | -10/Materials | Build established: Mutant 332 | -10/Materials | Identified exit to Mines 1116 | -10/Materials | Discovered new exit (range 7) 1349 | -10/Materials | Entered Mines 1439 | -10/Mines | Learned Materials interactive machine intel 1540 | -10/Mines | Discovered new exit (range 14) 2001 | -10/Mines | Build established: Hauler-Mutant 2041 | -10/Mines | Learned Materials interactive machine intel 2052 | -10/Mines | Deemed a non-threat by the Exiles lab entrance 2052 | -10/Mines | Discovered new exit (range 5) 2059 | -10/Mines | Entered Exiles 2059 | -10/Exiles | Accompanied by 2 allies 2089 | -10/Exiles | Led the pair of lost Derelicts to a safe place 2103 | -10/Exiles | Met 8R-AWN 2133 | -10/Exiles | Met EX-HEX 2184 | -10/Exiles | Met EX-BIN 2209 | -10/Exiles | Aligned with FarCom system 2211 | -10/Exiles | Given EX-Vault access code 2274 | -10/Exiles | Opened EX-Vault 2295 | -10/Exiles | Found Prototype Processor 2334 | -10/Exiles | Warned to stay clear of 0b10 Research branches 2390 | -10/Exiles | Met EX-DEC 2453 | -10/Exiles | Discovered new exit (range 12) 2476 | -10/Exiles | Left Exiles lab with 0b10 Alert Chip 2476 | -10/Exiles | Entered Mines 2513 | -9/Mines | Met a Derelict bent on vengeance 2523 | -9/Mines | Discovered new exit (range 6) 2537 | -9/Mines | Entered Materials 2537 | -8/Materials | Evolved 4 slots: Power x1, Propulsion x1, Utility x2 2538 | -8/Materials | Loaded intel: 19 interactive machine locations 2844 | -8/Materials | Build established: Hauler-Skirmisher 3199 | -8/Materials | Identified 0b10 Alert Chip 3322 | -8/Materials | Lost 3 parts (1p1n1w) 3475 | -8/Materials | Discovered new exit (range 11) 3899 | -8/Materials | Identified exit to Factory 4056 | -8/Materials | Entered Factory 4056 | -7/Factory | Evolved 2 slots: Propulsion x1, Utility x1 4936 | -7/Factory | Sucked down chute 4936 | -7/Factory | Entered Waste 4937 | -7/Waste | Joined by Warlord forces that had cleared the area 5183 | -7/Waste | Discovered new exit (range 13) 5266 | -7/Waste | Entered Factory 5266 | -7/Factory | Accompanied by 10 allies 5799 | -7/Factory | Discovered new exit (range 10) 5964 | -7/Factory | Entered another Factory area 5964 | -6/Factory | Evolved 2 slots: Propulsion x1, Utility x1 6825 | -6/Factory | Build established: Hauler-Assassin 6851 | -6/Factory | Fabricated Xenon Bombardment Thruster (x2) 7034 | -6/Factory | Discovered new exit (range 16) 7063 | -6/Factory | Entered Extension 7471 | -6/Extension | Rescued A7 7525 | -6/Extension | Rescued a captive Derelict 7526 | -6/Extension | Rescued a captive Derelict 7674 | -6/Extension | Rescued a captive Derelict 7773 | -6/Extension | Rescued a captive Derelict 7824 | -6/Extension | Rescued a captive Derelict 7835 | -6/Extension | Spotted B-75 Beast 7849 | -6/Extension | Spotted B-75 Beast 7919 | -6/Extension | Lost 4 parts (2p2n) 8074 | -6/Extension | Discovered new exit (range 3) 8075 | -6/Extension | Entered Factory 8075 | -5/Factory | Evolved 2 slots: Power x1, Propulsion x1 8208 | -5/Factory | Spotted B-75 Beast 8211 | -5/Factory | Build established: Scout 8252 | -5/Factory | Identified exit to Upper Caves 8587 | -5/Factory | Sucked down chute 8587 | -5/Factory | Entered Waste 8587 | -5/Waste | The area was eerily silent 8640 | -5/Waste | A Compactor rumbled back to life 8640 | -5/Waste | Spotted C-40 Crusher 8641 | -5/Waste | Discovered new exit (range 13) 8645 | -5/Waste | Entered Factory 8657 | -5/Factory | Discovered exit to Upper Caves (range 8) 8664 | -5/Factory | Assembled infested ambush trap array 8671 | -5/Factory | Entered Upper Caves 8780 | -5/Upper Caves | Learned 4 Factory zone layouts 8816 | -5/Upper Caves | Discovered new exit (range 5) 8823 | -5/Upper Caves | Entered another Upper Caves area 8856 | -5/Upper Caves | Learned Factory garrison access intel 8886 | -5/Upper Caves | Discovered new exit (range 6) 8891 | -5/Upper Caves | Entered Factory 8891 | -4/Factory | Evolved 2 slots: Power x1, Utility x1 8893 | -4/Factory | Loaded intel: 4 garrison access locations 9009 | -4/Factory | Discovered new exit (range 16) 9057 | -4/Factory | Found Prototype Processor 9188 | -4/Factory | Discovered new exit (range 4) 9197 | -4/Factory | Entered Research 9197 | -3/Research | Evolved 2 slots: Propulsion x1, Utility x1 9245 | -3/Research | Spotted B-86 Titan 9414 | -3/Research | Identified exit to Research 9495 | -3/Research | Build established: Infiltrator-Ninja 9597 | -3/Research | Discovered new exit (range 17) 9599 | -3/Research | Entered another Research area 9599 | -2/Research | Evolved 2 slots: Power x1, Propulsion x1 9630 | -2/Research | Lost 4 parts (2p1n1u) 9668 | -2/Research | Identified Exp. Terrain Scan Processor 9856 | -2/Research | Fabricated Xenon Bombardment Thruster (x2) 9916 | -2/Research | Core integrity fell below 50% 9932 | -2/Research | Core integrity fell below 20% 9947 | -2/Research | Destroyed by H-88 Terminator with KE Penetrator Last Messages --------------- 09912_ Imp. Gyrokinetic Inverter destroyed. 09912_ Slug penetrates Wall. 09912_ Penetrated by Slug. 09912_ Scythe destroyed. 09915_ Penetrated by Slug. 09918_ Exp. Terrain Scan Processor destroyed. 09918_ Penetrated by Slug. 09925_ Slug penetrates Wave Intensifier. 09928_ Slug penetrates Wall. 09928_ Penetrated by Slug. 09931_ Slug penetrates Wall. 09934_ Penetrated by Slug. 09940_ Slug penetrates H-88 Terminator. 09940_ Penetrated by Slug. 09940_ Imp. Gyrokinetic Inverter destroyed. 09941_ Penetrated by Slug. 09941_ Imp. Gyrokinetic Inverter destroyed. 09944_ Penetrated by Slug. 09944_ Slug penetrates Wall. 09947_ Penetrated by Slug. Map ----- +----------------------------------------------------+ | ?????????????????????????????????????????????????? | | ?????????????????????????????????????????????????? | | ?????????????????????????????????????????????????? | | ?????????????????????????????????????????????????? | | ?????????????????????????????????????????????????? | | ?????????????????????????????????????????????????? | | ?????????????????????????????????????????????????? | | ?????????????????????????????????????????????????? | | ?????????????????????????????????????????????????? | | ?????????????????????????????????????????????????? | | ?????????????????????????????????????????????????? | | ?????????????????????????????????????????????????? | | ?????????????????????????????????????????????????? | | ?????????????????????????????????????????????????? | | ??????????#######################????????????????? | | ??????????# # #????????????????? | | ??????????# #! #????????????????? | | ??????????# # """ #????????????????? | | ?????####??? [?# """ / #????????????????? | | ###### #####+#### """ #????????????????? | | + """ """ #????????????????? | | ####### """ ]""" #????????????????? | | ### #?????# """ ]hF" #????????????????? | | p #?# #?????# """ =]"" #????????????????? | | ## #?# #?????#= % #????????????????? | | ?# #?# #?????# =@h #????????????????? | | ?# #?# #?????#####;#;###+###????????????????? | | ?# ###+########### [%!?? ???Y?????????????? | | ## ## """" # *???###????????????????? | | ## ## """"" # ?????????????????????? | | ## ## """" !# #?????????????????????? | | ## ## ! """" # #?????????????????????? | | ## ## #u #?????????????????????? | | ## ## # #?????????????????????? | | ## # #?????????????????????? | | ## !# #?????????????????????? | | + # #?????????????????????? | | #### # #?????????????????????? | | ## #??# # ??????????????????????? | | # #??# # ??????????????????????? | | ?# ############+#### ??????????????????????? | | ?# ?????????????????????????? | | ?# ] [ ?????????????????????????? | | ?# ????????????????????????? | | ?# ??????????????????????? | | #####+### ????????????????????? | | # """"""" """""""??????????????????? | | # """"""" """"""" ?????????????????? | | # """"""" """"""???????????????????? | | # ! ?????????????????????? | +----------------------------------------------------+ Best States ------------- Heat Dissipation 73 Coolant Potential 65 Energy Generation 75 Energy Capacity 550 Matter Stores 300 Matter Capacity 300 Sight Range 20 Terrain Scan Range 24 Terrain Scan Density 1110 ECM Strength 3 Jamming Range 12 Cloak Strength 2 Power Amplification 40 Armor Coverage 225 Utility Shielding 66 Evasion (%) 64 Recoil Reduction 4 Item Schematics ----------------- Lgt. Deuterium Engine | -8/Materials | Scanalyzed Scythe | -8/Materials | Scanalyzed Adv. Terrain Scanner | -8/Materials | Scanalyzed Med. Treads | -8/Materials | Scanalyzed Xenon Bombardment Thruster | -6/Factory | Scanalyzed Imp. Overload Amplifier | -3/Research | Hacked Robot Schematics ------------------ None Fabricated ------------ Xenon Bombardment Thruster | x2 | -6/Factory Xenon Bombardment Thruster | x2 | -2/Research Alien Tech Used ----------------- None Achievements -------------- Party Time Challenges ------------ None Game ------ Seed HackingHackingMatrix Manual? 0 Play Time 02:06:39 Cumulative 41.6 hours Start 2020.04.29 @ 02:09:29 End 2020.05.05 @ 23:55:31 Sessions 5 Manual Loads 0 Difficulty Rogue Special Mode None Game No. 55 Rogue 39 Adventurer 15 Explorer 1 Win Type - Total 0 Types 0/0/0/0/0/0/0 Lore% 18 Gallery% 33 Achievement% 31 Wizard Run 0 Options --------- ASCII 0 Keyboard 0 Movement Numpad Keybinds 0 Fullscreen 1 Font 32/SmallcapsGlow Map View 76x50 Tactical HUD 1 Map Filters NONE Filters NONE Steam 1 RUN: 2ea304c8-11cb-4bb5-86d9-8253614b8282